fUSD/lending_fUSD_20250107
["ID","MTS","AMOUNT","RATE_DAILY","PERIOD"]
[347967068,1736253049232,-500.0,9.775e-05,2]
[347967069,1736253049242,-500.0,9.775e-05,2]
[347967070,1736253049252,-891.76,9.775e-05,2]
[347967071,1736253049261,-500.0,9.775e-05,2]
[347967072,1736253049273,-500.0,9.775e-05,2]
[347967073,1736253049283,-1145.26,9.775e-05,2]
[347967074,1736253049292,-500.0,9.775e-05,2]
[347967075,1736253049302,-500.0,9.775e-05,2]
[347967076,1736253049311,-500.0,9.775e-05,2]
[347967077,1736253049321,-500.0,9.775e-05,2]
[347967078,1736253049330,-500.0,9.775e-05,2]
[347967079,1736253049339,-713.63,9.775e-05,2]
[347967080,1736253049349,-500.0,9.775e-05,2]
[347967081,1736253049359,-509.61,9.775e-05,2]
[347967082,1736253049368,-1086.49,9.775e-05,2]
[347967083,1736253049378,-500.0,9.775e-05,2]
[347967084,1736253049387,-500.0,9.775e-05,2]
[347967085,1736253049396,-650.99,9.775e-05,2]
[347967086,1736253049405,-500.0,9.775e-05,2]
[347967087,1736253049415,-500.0,9.775e-05,2]
[347967088,1736253049424,-500.0,9.775e-05,2]
[347967089,1736253049434,-500.0,9.775e-05,2]
[347967090,1736253049444,-500.0,9.775e-05,2]
[347967091,1736253049453,-1111.49,9.775e-05,2]
[347967092,1736253049463,-500.0,9.775e-05,2]
[347967093,1736253049472,-500.0,9.775e-05,2]
[347967094,1736253049482,-500.0,9.775e-05,2]
[347967095,1736253049491,-500.0,9.775e-05,2]
[347967096,1736253049500,-500.0,9.775e-05,2]
[347967097,1736253049510,-500.0,9.775e-05,2]
[347967098,1736253049520,-500.0,9.775e-05,2]
[347967099,1736253049531,-500.0,9.775e-05,2]
[347967100,1736253049540,-500.0,9.775e-05,2]
[347967101,1736253049550,-1988.29,9.775e-05,2]
[347967102,1736253049559,-500.0,9.775e-05,2]
[347967103,1736253049570,-500.0,9.775e-05,2]
[347967104,1736253049579,-500.0,9.775e-05,2]
[347967105,1736253049588,-500.0,9.775e-05,2]
[347967106,1736253049598,-500.0,9.775e-05,2]
[347967107,1736253049607,-500.0,9.775e-05,2]
[347967108,1736253049616,-500.0,9.775e-05,2]
[347967109,1736253049626,-500.0,9.775e-05,2]
[347967110,1736253049636,-500.0,9.775e-05,2]
[347967111,1736253049645,-500.0,9.775e-05,2]
[347967112,1736253049655,-500.0,9.775e-05,2]
[347967113,1736253049664,-500.0,9.775e-05,2]
[347967114,1736253049673,-500.0,9.775e-05,2]
[347967115,1736253049683,-500.0,9.775e-05,2]
[347967116,1736253049692,-500.0,9.775e-05,2]
[347967117,1736253049701,-500.0,9.775e-05,2]
[347967118,1736253049711,-500.0,9.775e-05,2]
[347967119,1736253049720,-500.0,9.775e-05,2]
[347967120,1736253049731,-500.0,9.775e-05,2]
[347967121,1736253049740,-500.0,9.775e-05,2]
[347967122,1736253049750,-500.0,9.775e-05,2]
[347967123,1736253049759,-500.0,9.775e-05,2]
[347967124,1736253049773,-500.0,9.775e-05,2]
[347967125,1736253049782,-1670.98,9.775e-05,2]
[347967126,1736253049792,-1277.64,9.775e-05,2]
[347967127,1736253049801,-500.0,9.775e-05,2]
[347967128,1736253049810,-500.0,9.775e-05,2]
[347967129,1736253049820,-500.0,9.775e-05,2]
[347967130,1736253049830,-500.0,9.775e-05,2]
[347967131,1736253049840,-500.0,9.775e-05,2]
[347967132,1736253049850,-500.0,9.775e-05,2]
[347967133,1736253049860,-503.13372856,9.775e-05,2]
[347967134,1736253049869,-1142.7,9.775e-05,2]
[347967135,1736253049879,-500.0,9.775e-05,2]
[347967136,1736253049889,-500.0,9.775e-05,2]
[347967137,1736253049899,-500.0,9.775e-05,2]
[347967138,1736253049908,-500.0,9.775e-05,2]
[347967139,1736253049918,-500.0,9.775e-05,2]
[347967140,1736253049927,-754.63,9.775e-05,2]
[347967141,1736253049937,-500.0,9.775e-05,2]
[347967142,1736253049946,-500.0,9.775e-05,2]
[347967143,1736253049955,-500.0,9.775e-05,2]
[347967144,1736253049965,-500.0,9.775e-05,2]
[347967145,1736253049977,-500.0,9.775e-05,2]
[347967146,1736253049986,-500.0,9.775e-05,2]
[347967147,1736253049995,-500.0,9.775e-05,2]
[347967148,1736253050005,-1160.09,9.775e-05,2]
[347967149,1736253050014,-500.0,9.775e-05,2]
[347967150,1736253050026,-500.0,9.775e-05,2]
[347967151,1736253050036,-500.0,9.775e-05,2]
[347967152,1736253050045,-500.0,9.775e-05,2]
[347967153,1736253050055,-753.2,9.775e-05,2]
[347967154,1736253050064,-500.0,9.775e-05,2]
[347967155,1736253050074,-500.0,9.775e-05,2]
[347967156,1736253050083,-500.0,9.775e-05,2]
[347967157,1736253050093,-500.0,9.775e-05,2]
[347967158,1736253050103,-500.0,9.775e-05,2]
[347967159,1736253050112,-500.0,9.775e-05,2]
[347967160,1736253050121,-527.79,9.775e-05,2]
[347967161,1736253050131,-500.0,9.775e-05,2]
[347967162,1736253050140,-500.0,9.775e-05,2]
[347967163,1736253050150,-500.0,9.775e-05,2]
[347967164,1736253050159,-500.0,9.775e-05,2]
[347967165,1736253050169,-500.0,9.775e-05,2]
[347967166,1736253050178,-500.0,9.775e-05,2]
[347967167,1736253050188,-500.0,9.775e-05,2]
[347967168,1736253050197,-500.0,9.775e-05,2]
[347967169,1736253050207,-500.0,9.775e-05,2]
[347967170,1736253050216,-500.0,9.775e-05,2]
[347967171,1736253050225,-500.0,9.775e-05,2]
[347967172,1736253050235,-500.0,9.775e-05,2]
[347967173,1736253050243,-500.0,9.775e-05,2]
[347967174,1736253050253,-503.08416375,9.775e-05,2]
[347967175,1736253050263,-500.0,9.775e-05,2]
[347967176,1736253050275,-762.59,9.776e-05,2]
[347967177,1736253050285,-500.0,9.776e-05,2]
[347967178,1736253050294,-617.66,9.776e-05,2]
[347967179,1736253050304,-500.0,9.776e-05,2]
[347967180,1736253050313,-849.2,9.776e-05,2]
[347967181,1736253050322,-500.0,9.776e-05,2]
[347967182,1736253050331,-500.0,9.776e-05,2]
[347967183,1736253050341,-500.0,9.776e-05,2]
[347967184,1736253050350,-716.03,9.776e-05,2]
[347967185,1736253050359,-1484.57,9.777e-05,2]
[347967186,1736253050368,-1547.69,9.777e-05,2]
[347967187,1736253050378,-2178.79,9.777e-05,2]
[347967188,1736253050387,-1201.65,9.777e-05,2]
[347967189,1736253050396,-7183.41,9.777e-05,2]
[347967190,1736253050405,-1821.31,9.777e-05,2]
[347967191,1736253050415,-3019.37,9.777e-05,2]
[347967192,1736253050424,-1382.83,9.777e-05,2]
[347967193,1736253050433,-1523.48,9.777e-05,2]
[347967194,1736253050442,-500.0,9.777e-05,2]
[347967195,1736253050451,-992.5,9.777e-05,2]
[347967196,1736253050460,-3120.16,9.777e-05,2]
[347967197,1736253050469,-716.59,9.777e-05,2]
[347967198,1736253050478,-1109.68,9.777e-05,2]
[347967199,1736253050487,-657.74,9.777e-05,2]
[347967200,1736253050497,-583.3,9.777e-05,2]
[347967201,1736253050507,-929.35,9.777e-05,2]
[347967202,1736253050517,-631.39,9.777e-05,2]
[347967203,1736253050530,-3637.91,9.777e-05,2]
[347967204,1736253050540,-625.0,9.782e-05,2]
[347967205,1736253050549,-500.0,9.783e-05,2]
[347967206,1736253050558,-500.0,9.783e-05,2]
[347967207,1736253050568,-1239.83,9.794e-05,2]
[347967208,1736253050577,-1239.83,9.794e-05,2]
[347967209,1736253050587,-4622.04,9.795e-05,2]
[347967210,1736253050596,-625.0,9.795e-05,2]
[347967211,1736253050606,-436.8,9.8e-05,2]
[347967212,1736253050615,-1858.179,9.801e-05,2]
[347967213,1736253050625,-176.817,9.833e-05,2]
[347967214,1736253050634,-606.77604737,9.864e-05,2]
[347967215,1736253050643,-1239.83,9.898e-05,2]
[347967216,1736253050652,-3395.55,9.899e-05,2]
[347967217,1736253050663,-4033.38,9.899e-05,2]
[347967218,1736253050672,-1633.78,9.899e-05,2]
[347967219,1736253050681,-1239.83,9.899e-05,2]
[347967220,1736253050691,-1239.83,9.899e-05,2]
[347967221,1736253050700,-1239.83,9.899e-05,2]
[347967222,1736253050709,-1239.83,9.899e-05,2]
[347967223,1736253050719,-1133.22,9.899e-05,2]
[347967224,1736253050728,-1239.83,9.899e-05,2]
[347967225,1736253050737,-500.0,9.899e-05,2]
[347967226,1736253050747,-15123.58,9.899e-05,2]
[347967227,1736253050757,-3032.07,9.899e-05,2]
[347967228,1736253050767,-500.0,9.899e-05,2]
[347967229,1736253050779,-2376.18,9.899e-05,2]
[347967230,1736253050789,-500.0,9.899e-05,2]
[347967231,1736253050799,-581.52,9.899e-05,2]
[347967232,1736253050808,-992.58,9.899e-05,2]
[347967233,1736253050818,-702.44,9.899e-05,2]
[347967234,1736253050828,-1288.9,9.899e-05,2]
[347967235,1736253050838,-500.0,9.899e-05,2]
[347967236,1736253050848,-1000.0,9.899e-05,2]
[347967237,1736253050857,-1094.95,9.899e-05,2]
[347967238,1736253050868,-709.65,9.899e-05,2]
[347967239,1736253050877,-500.0,9.899e-05,2]
[347967240,1736253050887,-1667.85,9.899e-05,2]
[347967241,1736253051004,-1438.47,9.899e-05,2]
[347967242,1736253051014,-320.1703,9.9e-05,2]
[347967243,1736253051027,-566.0,9.93e-05,2]
[347967244,1736253051036,-641.338,9.93e-05,2]
[347967245,1736253051048,-257.472,9.93e-05,2]
[347967246,1736253051058,-1860.0,9.93e-05,2]
[347967247,1736253051067,-834.0,9.93e-05,2]
[347967248,1736253051076,-1258.0,9.93e-05,2]
[347967249,1736253051086,-3784.104,9.93e-05,2]
[347967250,1736253051095,-1039.949,9.93e-05,2]
[347967251,1736253051104,-552.585,9.93e-05,2]
[347967252,1736253051114,-3976.0,9.93e-05,2]
[347967253,1736253051123,-1103.0,9.93e-05,2]
[347967254,1736253051133,-3894.0,9.93e-05,2]
[347967255,1736253051142,-151.183,9.93e-05,2]
[347967256,1736253051151,-151.255,9.93e-05,2]
[347967257,1736253051160,-1267.0,9.93e-05,2]
[347967258,1736253051169,-151.0,9.93e-05,2]
[347967259,1736253051179,-9619.0,9.93e-05,2]
[347967260,1736253051188,-287.64057303,9.952e-05,2]
[347967261,1736253051198,-199.15965768,9.973e-05,2]
[347967262,1736253051207,-554.93617529,9.98e-05,2]
[347967263,1736253051217,-1239.83,9.987e-05,2]
[347967264,1736253051226,-1239.83,9.987e-05,2]
[347967265,1736253051234,-292555.25964552,9.988e-05,2]
[347967266,1736253051276,-1048.72783516,9.988e-05,2]
[347967267,1736253051763,-500.0,9.772e-05,2]
[347967268,1736253051773,-806.4500735,9.773e-05,2]
[347967269,1736253051789,-1153.7099265,9.773e-05,2]
[347967270,1736253051799,-302.55972963,9.773e-05,2]
[347967271,1736253051808,-500.0,9.773e-05,2]
[347967272,1736253051818,-325.73034397,9.775e-05,2]
[347967273,1736253051838,-174.26965603,9.775e-05,2]
[347967274,1736253051847,-671.73034397,9.988e-05,2]
[347967275,1736253051859,-2090.69255267,9.988e-05,2]
[347967276,1736253051877,-485.95845998,9.988e-05,2]
[347967277,1736253052981,-437.01,8.978e-05,2]
[347967278,1736253052991,-500.0,9.775e-05,2]
[347967279,1736253053001,-500.0,9.775e-05,2]
[347967280,1736253053011,-3884.2931545,9.988e-05,2]
[347967281,1736253053023,-508.63042921,9.988e-05,2]
[347967282,1736253053035,-669.56,9.988e-05,2]
[347967283,1736253053053,-2940.0000005,9.988e-05,2]
[347967284,1736253053066,-29574.52214019,9.988e-05,2]
[347967285,1736253053075,-1143.73,9.995e-05,2]
[347967286,1736253053085,-2465.9287614,9.997e-05,2]
[347967287,1736253053094,-6192.1195264,9.997e-05,2]
[347967288,1736253053104,-625.0,9.998e-05,2]
[347967289,1736253053113,-1239.83,9.999e-05,2]
[347967290,1736253053123,-1239.83,9.999e-05,2]
[347967291,1736253053133,-1239.83,9.999e-05,2]
[347967292,1736253053143,-1239.83,9.999e-05,2]
[347967293,1736253053153,-1239.83,9.999e-05,2]
[347967294,1736253053163,-1239.83,9.999e-05,2]
[347967295,1736253053172,-1239.83,9.999e-05,2]
[347967296,1736253053181,-1239.83,9.999e-05,2]
[347967297,1736253053191,-1239.83,9.999e-05,2]
[347967298,1736253053200,-1239.83,9.999e-05,2]
[347967299,1736253053210,-1239.83,9.999e-05,2]
[347967300,1736253053220,-1239.83,9.999e-05,2]
[347967301,1736253053230,-1239.87806787,9.999e-05,2]
[347967302,1736253053239,-625.0,9.999e-05,2]
[347967303,1736253053249,-625.0,9.999e-05,2]
[347967304,1736253053258,-625.0,9.999e-05,2]
[347967305,1736253053268,-625.0,9.999e-05,2]
[347967306,1736253053278,-625.0,9.999e-05,2]
[347967307,1736253053287,-625.0,9.999e-05,2]
[347967308,1736253053297,-625.0,9.999e-05,2]
[347967309,1736253053306,-625.0,9.999e-05,2]
[347967310,1736253053316,-625.0,9.999e-05,2]
[347967311,1736253053326,-625.0,9.999e-05,2]
[347967312,1736253053336,-625.0,9.999e-05,2]
[347967313,1736253053346,-625.0,9.999e-05,2]
[347967314,1736253053356,-625.0,9.999e-05,2]
[347967315,1736253053365,-625.0,9.999e-05,2]
[347967316,1736253053375,-625.0,9.999e-05,2]
[347967317,1736253053385,-625.0,9.999e-05,2]
[347967318,1736253053395,-625.0,9.999e-05,2]
[347967319,1736253053405,-625.0,9.999e-05,2]
[347967320,1736253053415,-625.0,9.999e-05,2]
[347967321,1736253053425,-791.0,0.0001,2]
[347967322,1736253053436,-711042.14541959,0.0001,2]
[347967323,1736253053452,-43957.90953259,0.0001,2]
[347967324,1736253195879,-155.55,7.192e-05,2]
[347967325,1736253396123,32566.0,0.0002,120]
[347967331,1736254148152,-201.0,7.449e-05,2]
[347967332,1736254148175,-94.96340376,7.932e-05,2]
[347967333,1736254208583,-2919.1,0.000129,31]
[347967334,1736254208607,-2919.1,0.000129,31]
[347967335,1736254208631,-2919.1,0.000129,31]
[347967336,1736254208654,-2919.1,0.000129,31]
[347967337,1736254208678,-2919.1,0.000129,31]
[347967338,1736254208701,-2919.1,0.000129,31]
[347967339,1736254208728,-2919.1,0.000129,31]
[347967340,1736254208752,-2919.1,0.000129,31]
[347967341,1736254208775,-1647.2,0.000129,31]
[347967342,1736254212964,-1271.9,0.000129,31]
[347967343,1736254212990,-2919.1,0.000129,31]
[347967344,1736254213015,-2919.1,0.000129,31]
[347967345,1736254213040,-2919.1,0.000129,31]
[347967346,1736254213067,-2919.1,0.000129,31]
[347967347,1736254213093,-2919.1,0.000129,31]
[347967348,1736254213119,-2919.1,0.000129,31]
[347967349,1736254213143,-2919.1,0.000129,31]
[347967354,1736254232454,-105.03659624,7.932e-05,2]
[347967355,1736254232464,-300.0,8.161e-05,2]
[347967356,1736254232473,-757.25072236,8.162e-05,2]
[347967357,1736254232494,-17839.10957764,8.162e-05,2]
[347967358,1736254232503,-781.47,8.219e-05,2]
[347967359,1736254232513,-250.0,8.262e-05,2]
[347967360,1736254232522,-1271.71,8.275e-05,2]
[347967361,1736254232531,-162.07,8.561e-05,2]
[347967362,1736254232540,-150.0,8.603e-05,2]
[347967363,1736254232550,-250.0,8.623e-05,2]
[347967364,1736254232559,-1346.08769979,8.678e-05,2]
[347967365,1736254232568,-1500.0,8.678e-05,2]
[347967366,1736254232578,-1346.08769978,8.693e-05,2]
[347967367,1736254232587,-250.0,8.693e-05,2]
[347967368,1736254232596,-716.27,8.699e-05,2]
[347967369,1736254232606,-1100.0,8.768e-05,2]
[347967370,1736254232615,-512.05775342,8.869e-05,2]
[347967371,1736254232625,-3366.99,8.895e-05,2]
[347967372,1736254232635,-12169.86607272,8.906e-05,2]
[347967377,1736254237886,-541.64756007,8.262e-05,2]
[347967378,1736254237941,-19426.61515801,8.262e-05,2]
[347967379,1736254237955,-5893.06921687,8.262e-05,2]
[347967380,1736254237965,-11730.13392728,8.906e-05,2]
[347967381,1736254237975,-1000.0,8.923e-05,2]
[347967382,1736254237985,-178.0,8.978e-05,2]
[347967383,1736254237995,-150.0,9e-05,2]
[347967384,1736254238004,-150.0,9e-05,2]
[347967385,1736254238014,-150.0,9e-05,2]
[347967386,1736254238024,-150.0,9e-05,2]
[347967387,1736254238033,-150.0,9e-05,2]
[347967388,1736254238043,-372.15636847,9.002e-05,2]
[347967465,1736254239835,-407.76363153,9.002e-05,2]
[347967466,1736254239845,-680.58,9.002e-05,2]
[347967467,1736254239856,-209.48,9.014e-05,2]
[347967468,1736254239866,-150.0,9.1e-05,2]
[347967469,1736254239877,-19923.0,9.107e-05,2]
[347967470,1736254239886,-150.0,9.2e-05,2]
[347967471,1736254239896,-150.0,9.25e-05,2]
[347967472,1736254239906,-150.0,9.3e-05,2]
[347967473,1736254239916,-150.0,9.4e-05,2]
[347967474,1736254239926,-150.0,9.5e-05,2]
[347967475,1736254239935,-150.0,9.5e-05,2]
[347967476,1736254239945,-584.68,9.503e-05,2]
[347967477,1736254239955,-2544.86,9.503e-05,2]
[347967478,1736254239965,-500.0,9.503e-05,2]
[347967479,1736254239974,-638.07,9.503e-05,2]
[347967480,1736254239984,-1164.35,9.503e-05,2]
[347967481,1736254239994,-792.44,9.503e-05,2]
[347967482,1736254240004,-1522.2,9.503e-05,2]
[347967483,1736254240014,-500.0,9.503e-05,2]
[347967484,1736254240024,-1000.0,9.503e-05,2]
[347967485,1736254240034,-1224.49,9.503e-05,2]
[347967486,1736254240043,-780.16,9.503e-05,2]
[347967487,1736254240053,-500.0,9.503e-05,2]
[347967488,1736254240062,-2062.44,9.503e-05,2]
[347967489,1736254240072,-1731.14,9.503e-05,2]
[347967490,1736254240082,-150.0,9.6e-05,2]
[347967491,1736254240091,-150.99,9.67e-05,2]
[347967492,1736254240101,-5151.24,9.67e-05,2]
[347967493,1736254240110,-999.99,9.67e-05,2]
[347967494,1736254240120,-9999.99,9.67e-05,2]
[347967495,1736254240130,-568.73,9.67e-05,2]
[347967496,1736254240140,-624.9938,9.671e-05,2]
[347967497,1736254240149,-150.0,9.7e-05,2]
[347967498,1736254240158,-1096.20207342,9.746e-05,2]
[347967499,1736254240168,-150.0,9.75e-05,2]
[347967500,1736254240177,-2764.85,9.77e-05,2]
[347967501,1736254240187,-500.0,9.77e-05,2]
[347967502,1736254240197,-2081.48,9.77e-05,2]
[347967503,1736254240207,-567.82,9.77e-05,2]
[347967504,1736254240216,-581.59,9.77e-05,2]
[347967505,1736254240226,-500.0,9.77e-05,2]
[347967506,1736254240236,-633.45,9.77e-05,2]
[347967507,1736254240247,-500.0,9.77e-05,2]
[347967508,1736254240257,-949.69,9.77e-05,2]
[347967509,1736254240267,-1033.12,9.77e-05,2]
[347967510,1736254240276,-500.0,9.77e-05,2]
[347967511,1736254240286,-1719.4,9.77e-05,2]
[347967512,1736254240296,-500.0,9.77e-05,2]
[347967513,1736254240306,-500.0,9.77e-05,2]
[347967514,1736254240317,-500.0,9.77e-05,2]
[347967515,1736254240327,-500.0,9.77e-05,2]
[347967516,1736254240338,-500.0,9.77e-05,2]
[347967517,1736254240348,-500.0,9.77e-05,2]
[347967518,1736254240358,-500.0,9.77e-05,2]
[347967519,1736254240368,-500.0,9.77e-05,2]
[347967520,1736254240377,-500.0,9.77e-05,2]
[347967521,1736254240386,-500.0,9.77e-05,2]
[347967522,1736254240396,-500.0,9.77e-05,2]
[347967523,1736254240405,-570.75,9.77e-05,2]
[347967524,1736254240414,-4184.62,9.77e-05,2]
[347967525,1736254240424,-500.0,9.77e-05,2]
[347967526,1736254240433,-500.0,9.77e-05,2]
[347967527,1736254240443,-500.0,9.77e-05,2]
[347967528,1736254240453,-500.0,9.77e-05,2]
[347967529,1736254240463,-522.91,9.77e-05,2]
[347967530,1736254240473,-500.0,9.77e-05,2]
[347967531,1736254240482,-563.7,9.77e-05,2]
[347967532,1736254240491,-647.04,9.77e-05,2]
[347967533,1736254240501,-500.0,9.77e-05,2]
[347967534,1736254240510,-500.0,9.77e-05,2]
[347967535,1736254240520,-500.0,9.77e-05,2]
[347967536,1736254240529,-500.0,9.77e-05,2]
[347967537,1736254240538,-508.79,9.77e-05,2]
[347967538,1736254240548,-603.16,9.77e-05,2]
[347967539,1736254240558,-500.0,9.77e-05,2]
[347967540,1736254240567,-500.0,9.77e-05,2]
[347967541,1736254240576,-539.36,9.77e-05,2]
[347967542,1736254240586,-500.0,9.77e-05,2]
[347967543,1736254240595,-500.0,9.77e-05,2]
[347967544,1736254240605,-500.0,9.77e-05,2]
[347967545,1736254240614,-500.0,9.77e-05,2]
[347967546,1736254240625,-500.0,9.77e-05,2]
[347967547,1736254240635,-500.0,9.77e-05,2]
[347967548,1736254240645,-500.0,9.77e-05,2]
[347967549,1736254240654,-500.0,9.77e-05,2]
[347967550,1736254240664,-500.0,9.77e-05,2]
[347967551,1736254240674,-500.0,9.77e-05,2]
[347967552,1736254240683,-520.83,9.77e-05,2]
[347967553,1736254240693,-500.0,9.77e-05,2]
[347967554,1736254240703,-500.0,9.77e-05,2]
[347967555,1736254240712,-896.23,9.77e-05,2]
[347967556,1736254240721,-500.0,9.77e-05,2]
[347967557,1736254240731,-2404.95,9.77e-05,2]
[347967558,1736254240740,-500.0,9.77e-05,2]
[347967559,1736254240750,-500.0,9.77e-05,2]
[347967560,1736254240761,-500.0,9.77e-05,2]
[347967561,1736254240771,-520.83,9.77e-05,2]
[347967562,1736254240781,-500.0,9.77e-05,2]
[347967563,1736254240795,-500.0,9.77e-05,2]
[347967564,1736254240804,-500.0,9.77e-05,2]
[347967565,1736254240814,-500.0,9.77e-05,2]
[347967566,1736254240823,-500.0,9.77e-05,2]
[347967567,1736254240834,-500.0,9.77e-05,2]
[347967568,1736254240844,-500.0,9.77e-05,2]
[347967569,1736254240853,-500.0,9.77e-05,2]
[347967570,1736254240863,-2410.05,9.77e-05,2]
[347967571,1736254240873,-500.0,9.77e-05,2]
[347967572,1736254240883,-500.0,9.77e-05,2]
[347967573,1736254240892,-406.36528246,9.77e-05,2]
[347967574,1736254240902,-500.0,9.77e-05,2]
[347967575,1736254240911,-500.0,9.77e-05,2]
[347967576,1736254241101,-500.0,9.77e-05,2]
[347967577,1736254241126,-500.0,9.77e-05,2]
[347967578,1736254241135,-500.0,9.77e-05,2]
[347967579,1736254241144,-500.0,9.77e-05,2]
[347967580,1736254241154,-669.15,9.77e-05,2]
[347967581,1736254241163,-500.0,9.77e-05,2]
[347967582,1736254241172,-500.0,9.77e-05,2]
[347967583,1736254241182,-780.45,9.77e-05,2]
[347967584,1736254241191,-500.0,9.77e-05,2]
[347967585,1736254241200,-3990.96,9.77e-05,2]
[347967586,1736254241210,-6737.12,9.77e-05,2]
[347967587,1736254241219,-500.0,9.77e-05,2]
[347967588,1736254241228,-500.0,9.77e-05,2]
[347967589,1736254241238,-500.0,9.77e-05,2]
[347967590,1736254241247,-10749.46,9.77e-05,2]
[347967591,1736254241256,-500.0,9.77e-05,2]
[347967592,1736254241266,-500.0,9.77e-05,2]
[347967593,1736254241275,-595.03,9.77e-05,2]
[347967594,1736254241284,-500.0,9.77e-05,2]
[347967595,1736254241293,-5288.16,9.77e-05,2]
[347967596,1736254241303,-500.0,9.77e-05,2]
[347967597,1736254241313,-500.0,9.77e-05,2]
[347967598,1736254241324,-500.0,9.77e-05,2]
[347967599,1736254241334,-2788.48,9.77e-05,2]
[347967600,1736254241344,-6913.62,9.77e-05,2]
[347967601,1736254241353,-500.0,9.77e-05,2]
[347967602,1736254241363,-500.0,9.77e-05,2]
[347967603,1736254241372,-4521.26,9.77e-05,2]
[347967604,1736254241381,-500.0,9.77e-05,2]
[347967605,1736254241391,-500.0,9.77e-05,2]
[347967606,1736254241401,-500.0,9.77e-05,2]
[347967607,1736254241410,-520.83,9.77e-05,2]
[347967608,1736254241419,-3685.56,9.77e-05,2]
[347967609,1736254241429,-500.0,9.77e-05,2]
[347967610,1736254241437,-803.47,9.77e-05,2]
[347967611,1736254241447,-500.0,9.77e-05,2]
[347967612,1736254241459,-3814.88,9.77e-05,2]
[347967613,1736254241468,-500.0,9.77e-05,2]
[347967614,1736254241477,-520.83,9.77e-05,2]
[347967615,1736254241486,-500.0,9.77e-05,2]
[347967616,1736254241504,-500.0,9.77e-05,2]
[347967617,1736254241513,-864.64,9.77e-05,2]
[347967618,1736254241522,-713.2,9.77e-05,2]
[347967619,1736254241532,-500.0,9.77e-05,2]
[347967620,1736254241541,-500.0,9.77e-05,2]
[347967621,1736254241550,-500.0,9.77e-05,2]
[347967622,1736254241560,-500.0,9.77e-05,2]
[347967623,1736254241571,-778.88,9.77e-05,2]
[347967624,1736254241580,-500.0,9.77e-05,2]
[347967625,1736254241590,-500.0,9.77e-05,2]
[347967626,1736254241599,-500.0,9.77e-05,2]
[347967627,1736254241609,-2391.56,9.77e-05,2]
[347967628,1736254241618,-2420.55,9.77e-05,2]
[347967629,1736254241628,-500.0,9.77e-05,2]
[347967630,1736254241637,-500.0,9.77e-05,2]
[347967631,1736254241646,-500.0,9.77e-05,2]
[347967632,1736254241655,-1742.22,9.77e-05,2]
[347967633,1736254241665,-2991.13,9.77e-05,2]
[347967634,1736254241674,-500.0,9.77e-05,2]
[347967635,1736254241683,-500.0,9.771e-05,2]
[347967636,1736254241693,-500.0,9.771e-05,2]
[347967637,1736254241703,-520.83,9.771e-05,2]
[347967638,1736254241712,-500.0,9.771e-05,2]
[347967639,1736254241721,-500.0,9.771e-05,2]
[347967640,1736254241731,-500.0,9.771e-05,2]
[347967641,1736254241741,-1514.78,9.771e-05,2]
[347967642,1736254241750,-500.0,9.771e-05,2]
[347967643,1736254241760,-500.0,9.771e-05,2]
[347967644,1736254241769,-561.63,9.771e-05,2]
[347967645,1736254241779,-500.0,9.771e-05,2]
[347967646,1736254241790,-500.0,9.771e-05,2]
[347967647,1736254241799,-2055.52,9.771e-05,2]
[347967648,1736254241808,-1329.11,9.771e-05,2]
[347967649,1736254241817,-1721.12,9.771e-05,2]
[347967650,1736254241827,-1615.35,9.771e-05,2]
[347967651,1736254241836,-989.36,9.771e-05,2]
[347967652,1736254241846,-500.0,9.771e-05,2]
[347967653,1736254241856,-853.85,9.771e-05,2]
[347967654,1736254241865,-520.83,9.771e-05,2]
[347967655,1736254241874,-647.57,9.771e-05,2]
[347967656,1736254241884,-500.0,9.771e-05,2]